Cogmind - Beta 13 @@@ ROGUE MODE // 2024.07.16 @ 16:36:07 Player: Venar246 Result: Destroyed by Y-45 Defender with Beam Rifle Performance ------------- Evolutions (2) 1000 Regions Visited (6) 1200 Robots Destroyed (57) 285 Value Destroyed (1968) 1968 Prototype IDs (23) 460 Alien Tech Used (0) 0 Bonus (672) 672 TOTAL SCORE: 5585 Bonus ------- High Alert Combat Kills 87 Follower Combat Kills 85 Entered Garrisons 200 Aligned with FarCom 300 Cogmind --------- Core Integrity 0/550 Matter 217/300 Energy 100/100 System Corruption 0% Temperature Cool (9) Movement Core (400) Ox7 Location -8/Garrison Parts ------- > --- POWER (1) -------- (None) > --- PROPULSION (3) --- (None) > --- UTILITY (5) ------ Large Storage Unit Core Analyzer > --- WEAPON (2) ------- Power Sword > --- INVENTORY (15) --- Light Nuclear Core Flight Unit Flight Unit Flight Unit Medium Storage Unit Compact Matter Pod (150) Improved Signal Interpreter Terrain Scanner Reaction Control System Reaction Control System Layered Light Armor Plating Guided Plasma Cannon Chainsword Peak State ------------ > --- POWER ------------ Improved Ion Engine > --- PROPULSION ------- Light Treads Aluminum Leg Improved Carbon-fiber Leg > --- UTILITY ---------- Large Storage Unit Core Analyzer Core Analyzer Core Analyzer Layered Light Armor Plating > --- WEAPON ----------- Improved Grenade Launcher Chainsword > --- INVENTORY -------- Light Nuclear Core Flight Unit Flight Unit Flight Unit Medium Storage Unit Compact Matter Pod Improved Signal Interpreter Terrain Scanner Reaction Control System Reaction Control System Layered Light Armor Plating Guided Plasma Cannon Rocket Launcher Chainsword Chainsword [Rating: 36] Favorites ----------- Power Light Nuclear Core Engine Light Ion Engine Power Core Light Nuclear Core Propulsion Aluminum Leg Treads Light Treads Leg Aluminum Leg Utility Core Analyzer Storage Large Storage Unit Processor Core Analyzer Protection Layered Light Armor Plating Weapon Light Assault Rifle Energy Gun EM Pulse Gun Ballistic Gun Light Assault Rifle Launcher Improved Grenade Launcher Slashing Weapon Chainsword Build | -11 -10 -10 -10 -9 -8 -8 ------- Run | Yrd Mat Min Exi Min Mat Gar Slots Evolved 4 | . . . . . 4 . Power . | . . . . . . . Propulsion 1 | . . . . . 1 . Utility 3 | . . . . . 3 . Weapon . | . . . . . . . Parts Attached 39 | 6 4 2 . . 12 15 Power 5 | 1 1 1 . . 1 1 Engine 3 | 1 . 1 . . . 1 Core 2 | . 1 . . . 1 . Reactor . | . . . . . . . Propulsion 16 | 2 1 1 . . 4 8 Treads 1 | . . . . . . 1 Leg 15 | 2 1 1 . . 4 7 Wheel . | . . . . . . . Hover . | . . . . . . . Flight . | . . . . . . . Utility 7 | 1 1 . . . 4 1 Device . | . . . . . . . Storage 2 | 1 1 . . . . . Processor 4 | . . . . . 4 . Hackware . | . . . . . . . Protection 1 | . . . . . . 1 Artifact . | . . . . . . . Weapon 11 | 2 1 . . . 3 5 Energy Gun 1 | 1 . . . . . . Energy Cannon . | . . . . . . . Ballistic Gun 4 | 1 1 . . . 2 . Ballistic Cannon . | . . . . . . . Launcher 2 | . . . . . . 2 Special Weapon . | . . . . . . . Impact Weapon . | . . . . . . . Slashing Weapon 4 | . . . . . 1 3 Piercing Weapon . | . . . . . . . Special Melee Weapon . | . . . . . . . Unidentified Prototypes . | . . . . . . . Parts Lost 20 | . 2 2 . . 5 11 Power 5 | . 1 1 . . 1 2 Propulsion 10 | . 1 1 . . 2 6 Utility 1 | . . . . . . 1 Weapon 4 | . . . . . 2 2 Highest Loss Streak 3 | . 1 2 . . 3 3 To Critical Strikes . | . . . . . . . Average Slot Usage (%) 85 | . 84 71 85 85 92 94 Engine 4 | . . . 14 14 4 5 Core 3 | . 12 . . . 2 2 Leg 26 | . 27 27 28 28 26 23 Storage 11 | . 14 14 14 14 9 9 Processor 14 | . . . . . 35 28 Protection 1 | . . . . . . 7 Energy Gun 1 | . 9 . . . . . Ballistic Gun 15 | . 18 28 28 28 11 . Launcher 1 | . . . . . . 5 Slashing Weapon 3 | . . . . . 3 10 Naked Turns . | . . . . . . . Heaviest Build 40 | 11 33 25 25 25 29 40 Greatest Support 38 | 20 20 20 20 20 30 38 Greatest Overweight (x) 2 | 2 1 2 1 1 1 1 Average Overweight (x) . | . . 1 1 1 . . Largest Inventory Capacity 15 | 8 15 15 15 15 15 15 Average Capacity 14 | 7 13 15 15 15 15 15 Most Carried 15 | 2 12 14 13 13 15 15 Average Carried 12 | 1 6 12 12 13 14 14 Final Capacity 15 | 8 15 15 15 15 15 15 Final Carried 15 | 2 12 12 13 13 15 13 Class Distribution -------------------- 91% | Mutant 8% | Scavenger-Mutant Dominant Class ---------------- Mutant | -10/Materials Mutant | -10/Mines Mutant | -10/Exiles Mutant | -9/Mines Mutant | -8/Materials Mutant | -8/Garrison Resources | -11 -10 -10 -10 -9 -8 -8 ----------- Run | Yrd Mat Min Exi Min Mat Gar Matter Collected 923 | 59 277 19 . 10 290 268 Remotely . | . . . . . . . Salvage Created 1756 | . 512 98 . . 655 491 Parts 106 | . 25 3 . . 34 44 Haulers Intercepted 2 | . 1 . . . 1 . Recyclers Shooed 1 | . 1 . . . . . Parts Field Recycled . | . . . . . . . Retrieved Matter . | . . . . . . . Parts Self-Destructed . | . . . . . . . Prevented . | . . . . . . . Kills | -11 -10 -10 -10 -9 -8 -8 ------- Run | Yrd Mat Min Exi Min Mat Gar Combat Hostiles Destroyed 52 | . 10 2 . . 16 24 Melee 7 | . . . . . 4 3 Guns 24 | . 10 2 . . 12 . AOE 21 | . . . . . . 21 Classes Destroyed 10 | . 3 . . . 5 2 Tunneler 1 | . . . . . 1 . Hauler 2 | . 1 . . . 1 . Operator 1 | . 1 . . . . . Watcher 1 | . . . . . 1 . Swarmer 17 | . . . . . 6 11 Grunt 26 | . 10 2 . . 5 9 Brawler 1 | . . . . . . 1 Duelist 1 | . . . . . 1 . Sentry 6 | . . . . . 4 2 Specialist 1 | . . . . . . 1 Best Kill Streak 6 | . 4 4 . . 6 6 Combat Bots Only 6 | . 4 4 . . 6 6 Max Kills in Single Turn 3 | . 1 1 . . 1 3 Gunslinging . | . . . . . . . Exploded 3 | . . . . . . 3 Melee 1 | . . . . . 1 1 Uniques/NPCs Destroyed . | . . . . . . . Combat | -11 -10 -10 -10 -9 -8 -8 -------- Run | Yrd Mat Min Exi Min Mat Gar Hostile Shots Fired 236 | . 58 10 . . 58 110 Missed 60 | . 17 1 . . 16 26 Damage Taken 2925 | . 552 144 . . 692 1537 Core 731 | . 130 48 . . 83 470 Absorbed by Shields . | . . . . . . . Core Remaining (%) 64 | 100 . . . 28 . . Volleys Fired 114 | . 49 8 . . 35 22 Largest 2 | . 2 2 . . 2 1 Hottest 60 | . 60 40 . . 46 36 Shots Fired 206 | . 98 16 . . 70 22 Gun 184 | . 98 16 . . 70 . Cannon . | . . . . . . . Launcher 22 | . . . . . . 22 Special . | . . . . . . . Kinetic 157 | . 71 16 . . 70 . Thermal . | . . . . . . . Explosive 22 | . . . . . . 22 Electromagnetic 27 | . 27 . . . . . Robot Hit Streak 11 | . 8 4 . . 11 5 Robot Miss Streak 5 | . 5 2 . . 3 3 Penetration Max . | . . . . . . . Secondary Targets 3 | . 2 . . . 1 . Max Gunslinging Chain 1 | . 1 . . . 1 . Shots Hit Robots 143 | . 53 11 . . 57 22 Core Hits 107 | 1 31 7 . . 35 33 Critical Kills . | . . . . . . . Critical Parts Destroyed . | . . . . . . . Critical Strikes 4 | . 2 . . . 1 1 Corrupt 2 | . 2 . . . . . Sever 2 | . . . . . 1 1 Melee Attacks 37 | . . . . . 12 25 Impact . | . . . . . . . Slashing 37 | . . . . . 12 25 Piercing . | . . . . . . . Sneak Attacks 1 | . . . . . 1 . Combat Hostiles . | . . . . . . . Follow-up Attacks . | . . . . . . . Damage Inflicted 3764 | 18 625 92 . . 971 2058 Guns 1342 | . 585 84 . . 673 . Cannons . | . . . . . . . Explosions 1634 | . 34 . . . . 1600 Melee 749 | . . . . . 291 458 Ramming 39 | 18 6 8 . . 7 . Kinetic 1116 | . 359 84 . . 673 . Thermal 34 | . 34 . . . . . Explosive 1600 | . . . . . . 1600 Electromagnetic 226 | . 226 . . . . . Impact . | . . . . . . . Slashing 749 | . . . . . 291 458 Piercing . | . . . . . . . Highest Corruption . | . . . . . . . Average Corruption . | . . . . . . . Corruption Purged . | . . . . . . . Corruption Blocked . | . . . . . . . Overload Shots . | . . . . . . . Overflow Damage 98 | . . . . . 27 71 Projectiles . | . . . . . . . Explosions 58 | . . . . . 12 46 Melee 40 | . . . . . 15 25 Knockbacks 1 | . . . . . 1 . Impact 1 | . . . . . 1 . Kinetic . | . . . . . . . Secondary . | . . . . . . . Self-Inflicted Damage 271 | . . . . . 99 172 Shots 7 | . . . . . 1 6 Rammed . | . . . . . . . Targets Rammed 13 | 7 1 3 . . 2 . Kicked 13 | 7 1 3 . . 2 . Crushed . | . . . . . . . Highest Temperature 168 | . 168 4 . . 11 23 Average Temperature 36 | . 42 3 . . 11 6 Received Heat Transfer 921 | . 336 81 . . 189 315 Siege Activations . | . . . . . . . Robots Corrupted . | . . . . . . . Combat Hostiles . | . . . . . . . Parts Fried . | . . . . . . . Impact Corruptions . | . . . . . . . Robots Melted . | . . . . . . . Combat Hostiles . | . . . . . . . Parts Melted . | . . . . . . . Heat Transferred 50 | . 50 . . . . . Parts Sabotaged . | . . . . . . . Parts Stolen . | . . . . . . . Parts Stripped . | . . . . . . . Power Chain Reactions 1 | . 1 . . . . . Alert | -11 -10 -10 -10 -9 -8 -8 ------- Run | Yrd Mat Min Exi Min Mat Gar Peak Influence 754 | . 155 90 . 58 277 754 Initial 85 | . . 60 . . 22 85 Average 175 | . 92 40 . 29 129 409 Maximum Alert Level 3 | . . . . . 1 3 Low Security (%) 71 | 100 100 100 . 100 68 24 Level 1 13 | . . . . . 31 23 Level 2 7 | . . . . . . 27 Level 3 6 | . . . . . . 24 Level 4 . | . . . . . . . Level 5 . | . . . . . . . High Security . | . . . . . . . Max Security . | . . . . . . . Squads Dispatched 6 | . 4 . . . 2 . Investigation 4 | . 2 . . . 2 . Extermination . | . . . . . . . Reinforcement 2 | . 2 . . . . . Assault . | . . . . . . . Garrison . | . . . . . . . Intercept . | . . . . . . . Searches Triggered . | . . . . . . . Construction Impeded . | . . . . . . . Haulers Reinforced . | . . . . . . . Active Scanning Responses . | . . . . . . . Cargo Convoy Interrupts . | . . . . . . . Stealth | -11 -10 -10 -10 -9 -8 -8 --------- Run | Yrd Mat Min Exi Min Mat Gar Distress Signals 3 | . 3 . . . . . Communications Jammed . | . . . . . . . Distress Signals . | . . . . . . . Times Spotted 69 | . 18 1 . 2 20 28 Peak Tracking Total 6 | . 5 1 . 3 5 6 Tactical Retreats 4 | . 1 . . . 1 2 Traps | -11 -10 -10 -10 -9 -8 -8 ------- Run | Yrd Mat Min Exi Min Mat Gar Traps Triggered 6 | . 2 . . . . 4 Indirectly . | . . . . . . . Trap Hack Attempts . | . . . . . . . Triggered . | . . . . . . . Disarmed . | . . . . . . . Reprogrammed . | . . . . . . . Reused . | . . . . . . . Traps Extracted . | . . . . . . . Installed . | . . . . . . . Triggered . | . . . . . . . Machines | -11 -10 -10 -10 -9 -8 -8 ---------- Run | Yrd Mat Min Exi Min Mat Gar Machines Disabled 2 | . . . . . 1 1 Max in Single Turn 1 | . . . . . 1 1 Garrison Relay 1 | . . . . . . 1 Machines Repaired . | . . . . . . . Machines Dismantled . | . . . . . . . Machines Sabotaged . | . . . . . . . Overloaded Fab Kills . | . . . . . . . Hacking | -11 -10 -10 -10 -9 -8 -8 --------- Run | Yrd Mat Min Exi Min Mat Gar Machines Accessed 9 | . 2 . 1 . 4 2 Terminals 7 | . 2 . . . 3 2 Fabricators . | . . . . . . . Repair Stations . | . . . . . . . Recycling Units . | . . . . . . . Scanalyzers . | . . . . . . . Garrison Access 1 | . . . . . 1 . Total Hacks 15 | . 5 . 1 . 7 2 Successful 9 | . 3 . 1 . 3 2 Failed 6 | . 2 . . . 4 . Catastrophic 2 | . . . . . 2 . Database Lockouts . | . . . . . . . Manual 13 | . 6 . 1 . 6 . Terminals 13 | . 5 . . . 6 2 Fabricators . | . . . . . . . Repair Stations . | . . . . . . . Recycling Units . | . . . . . . . Scanalyzers . | . . . . . . . Garrison Access 1 | . . . . . 1 . Terminal Hacks 8 | . 3 . 1 . 2 2 Robot Analysis 2 | . 2 . . . . . Hauler Manifests 2 | . 1 . . . 1 . Zone Layout 1 | . . . . . 1 . Patrol Navigation 1 | . . . . . . 1 Security Stations 1 | . . . . . . 1 Derelict Proto ID Bank 1 | . . . 1 . . . Fabricator Hacks . | . . . . . . . Repair Station Hacks . | . . . . . . . Recycling Unit Hacks . | . . . . . . . Scanalyzer . | . . . . . . . Garrison Access Hacks 1 | . . . . . 1 . Unlock Access 1 | . . . . . 1 . Unauthorized Hacks . | . . . . . . . Terminals . | . . . . . . . Fabricators . | . . . . . . . Repair Stations . | . . . . . . . Recycling Units . | . . . . . . . Scanalyzers . | . . . . . . . Garrison Access . | . . . . . . . Data Cores Recovered . | . . . . . . . Used . | . . . . . . . Hacking Detections 6 | . 1 . . . 3 2 Full Trace Events 2 | . . . . . 2 . Feedback Events . | . . . . . . . Feedback Blocked . | . . . . . . . Robot Schematics Acquired . | . . . . . . . Robots Built . | . . . . . . . Authchips . | . . . . . . . Time . | . . . . . . . Total Robot Build Rating . | . . . . . . . Part Schematics Acquired . | . . . . . . . Parts Built . | . . . . . . . Authchips . | . . . . . . . Time . | . . . . . . . Total Part Build Rating . | . . . . . . . Parts Repaired . | . . . . . . . Time . | . . . . . . . Parts Recycled . | . . . . . . . Recycled Matter . | . . . . . . . Retrieved Matter . | . . . . . . . Retrieved Components . | . . . . . . . Parts Scanalyzed . | . . . . . . . Part Schematics Acquired . | . . . . . . . Parts Damaged . | . . . . . . . Bothacking | -11 -10 -10 -10 -9 -8 -8 ------------ Run | Yrd Mat Min Exi Min Mat Gar Used RIF Installer . | . . . . . . . Robots Hacked . | . . . . . . . Non-combat . | . . . . . . . Combat . | . . . . . . . Robot Hacks Applied . | . . . . . . . Relay Couplers Released 4 | . . . . . . 4 Machine Destruction 4 | . . . . . . 4 Fabnet Peak Effective % . | . . . . . . . Robots Rewired . | . . . . . . . Allies Hacked . | . . . . . . . Hacks Repelled . | . . . . . . . Allies | -11 -10 -10 -10 -9 -8 -8 -------- Run | Yrd Mat Min Exi Min Mat Gar Total Allies 3 | . . 3 . . . . Largest Group 3 | . . 3 3 3 2 . Highest-Rated Group 40 | . . 40 40 40 24 . Highest-Rated Ally 16 | . . 16 16 16 16 . Total Orders . | . . . . . . . Ally Attacks 25 | . . . . 14 11 . Total Damage 308 | . . . . 185 123 . Kills 3 | . . . . 3 . . Allies Corrupted . | . . . . . . . Allies Melted . | . . . . . . . Intel | -11 -10 -10 -10 -9 -8 -8 ------- Run | Yrd Mat Min Exi Min Mat Gar Robot Analysis Total 2 | . 2 . . . . . Derelict Logs Recovered 1 | . . 1 . . . . Drone Launches . | . . . . . . . Drone Recoveries . | . . . . . . . Exploration | -11 -10 -10 -10 -9 -8 -8 ------------- Run | Yrd Mat Min Exi Min Mat Gar Turns Passed 4077 | 82 756 882 438 67 812 1040 Spaces Moved 2156 | 57 342 448 231 36 469 573 Core 11 | 11 . . . . . . Treads 73 | . . . . . . 73 Legs 2072 | 46 342 448 231 36 469 500 Wheels . | . . . . . . . Hover . | . . . . . . . Flight . | . . . . . . . Fastest Speed 50 | 50 120 190 190 190 120 120 Average Speed 161 | 111 175 190 190 190 120 155 Slowest Speed 260 | 150 190 260 190 190 190 240 Overloaded Moves . | . . . . . . . Propulsion Burnouts . | . . . . . . . Robots Hopped . | . . . . . . . Cave-ins Triggered . | . . . . . . . Exploration Rate (%) 41 | 4 51 76 60 9 33 59 Regions Visited 6 Branch Regions 3 Pre-discovered Areas 1 | . . 1 . . . . Known Exits Taken 1 | . . . . . 1 . Unknown Exits Taken 5 | 1 1 1 1 1 . . Scrap Searched 1 | . . 1 . . . . Spaces Dug 1 | . . . . . 1 . Terrain Destroyed 136 | . . . . . 17 119 Melee 1 | . . . . . 1 . Projectile . | . . . . . . . AOE 135 | . . . . . 16 119 Terrain Rammed . | . . . . . . . Walls Destroyed . | . . . . . . . Machines Disabled . | . . . . . . . Actions | -11 -10 -10 -10 -9 -8 -8 --------- Run | Yrd Mat Min Exi Min Mat Gar Total 2511 | 71 413 464 231 35 633 664 Wait 88 | . 4 . . . 78 6 Move 2150 | 56 341 447 230 35 468 573 Hop . | . . . . . . . Pick Up 38 | 2 12 3 1 . 15 5 Fast Attach 20 | 6 2 . . . 5 7 Attach 12 | . 1 2 . . 4 5 Detach . | . . . . . . . Swap 7 | . 1 . . . 3 3 Drop 22 | . 2 1 . . 11 8 Fire 114 | . 49 8 . . 35 22 Melee 37 | . . . . . 12 25 Ram . | . . . . . . . Kick 13 | 7 1 3 . . 2 . Crush . | . . . . . . . Escape Stasis 10 | . . . . . . 10 Rewire . | . . . . . . . Trap . | . . . . . . . Miscellaneous . | . . . . . . . Route ------- -11/Scrapyard -10/Materials (discovered 2 exits: [*Mat] / [*Min]) -10/Mines (discovered 3 exits: [*Mat x2] / *Exi) -10/Exiles -9/Mines -8/Materials -8/Garrison History --------- Turn | Location | Event 10 | -11/Scrapyard | Discovered new exit (range 15) 83 | -11/Scrapyard | Entered Materials 309 | -10/Materials | Build established: Mutant 491 | -10/Materials | Discovered new exit (range 14) 679 | -10/Materials | Discovered new exit (range 11) 818 | -10/Materials | Core integrity fell below 50% 839 | -10/Materials | Entered Mines 922 | -10/Mines | Found a hidden stash of uninstalled traps 947 | -10/Mines | Discovered new exit (range 12) 1052 | -10/Mines | Learned Materials interactive machine intel 1167 | -10/Mines | Learned location of Storage (-9) 1363 | -10/Mines | Discovered new exit (range 15) 1470 | -10/Mines | Assisted by bots powering up and referring to "LRC-V3" 1707 | -10/Mines | Deemed a non-threat by the Exiles lab entrance 1709 | -10/Mines | Discovered new exit (range 5) 1721 | -10/Mines | Entered Exiles 1721 | -10/Exiles | Accompanied by 3 allies 1773 | -10/Exiles | Met 8R-AWN 1799 | -10/Exiles | Met EX-HEX 1856 | -10/Exiles | Met EX-BIN 1885 | -10/Exiles | Aligned with FarCom system 1887 | -10/Exiles | Given EX-Vault access code 1942 | -10/Exiles | Opened EX-Vault 1955 | -10/Exiles | Found Gui. Plasma Cannon 1998 | -10/Exiles | Warned to stay clear of 0b10 Research branches 2063 | -10/Exiles | Met EX-DEC 2139 | -10/Exiles | Discovered new exit (range 11) 2159 | -10/Exiles | Left Exiles lab with Gui. Plasma Cannon 2159 | -10/Exiles | Entered Mines 2159 | -9/Mines | Accompanied by 3 allies 2194 | -9/Mines | Discovered new exit (range 15) 2226 | -9/Mines | Entered Materials 2226 | -8/Materials | Accompanied by 2 allies 2226 | -8/Materials | Evolved 4 slots: Propulsion x1, Utility x3 2227 | -8/Materials | Loaded intel: 18 interactive machine locations 2693 | -8/Materials | Lost 3 parts (1p2n) 3037 | -8/Materials | Identified exit to Garrison 3038 | -8/Materials | Entered Garrison 3146 | -8/Garrison | Triggered checkpoint 3264 | -8/Garrison | Triggered checkpoint 3333 | -8/Garrison | Learned Materials security intel 3498 | -8/Garrison | Triggered checkpoint 3534 | -8/Garrison | Triggered checkpoint 3682 | -8/Garrison | Triggered checkpoint 3818 | -8/Garrison | Build established: Scavenger-Mutant 3826 | -8/Garrison | Triggered checkpoint 3860 | -8/Garrison | Triggered checkpoint 3911 | -8/Garrison | Lost 3 parts (2n1w) 4072 | -8/Garrison | Core integrity fell below 50% 4076 | -8/Garrison | Core integrity fell below 20% 4078 | -8/Garrison | Destroyed by Y-45 Defender with Beam Rifle Last Messages --------------- 03880_ S-10 Pest destroyed. 03890_ Acquired 2 matter. 03907_ Acquired Power Sword. 03909_ Dropped Chainsword. 03916_ Acquired Power Sword. 03917_ Dropped Chainsword. 03918_ Acquired Chainsword. 03919_ Dropped Chainsword. 03921_ Acquired Power Sword. 04065_ Triggered Alarm Trap. 04065_ An alarm sounds. 04066_ Power Sword severed. 04066_ Aluminum Leg destroyed. 04068_ Imp. Ion Engine destroyed. 04069_ Lyr. Light Armor Plating destroyed. 04070_ Aluminum Leg severed. 04070_ Power Sword severed. 04071_ Core Analyzer severed. 04075_ L-31 Rogue Imp. Aluminum Leg severed. 04076_ Core Analyzer severed. Map ----- +----------------------------------------------------+ | ######## #???????????????????????????????? | | #???????????????????????????????? | | #???????????????????????????????? | | ## ###########???????????????????????????????? | | ## #####??# #????????????????????????????????? | | = # #### #????????????????????????????????? | | ! #????????????????????????????????? | | # #####????????????????????????????????? | | ** #????????????????????????????????????? | | ## ### #????????????????????????????????????? | | ## #?## #????????????????????????????????????? | | #### #################????????????????????? | | # #????????????????????? | | ###### ############# #????????????????????? | | "##^^ #????# #???????????# ###??????????????????? | | ??#^ #????# #???????????! !#??????????????????? | | ??# #????# #???????????! !#??????????????????? | | ??# #????# #???????????! !#??????????????????? | | ??# #????# #???????????! !#??????????????????? | | ??# ########??????????## ##??????????????????? | | ??# #???????????# #???????????????????? | | ??# ###### #???????????? #???????????????????? | | ??# #????# #??????????## ##??????????????????? | | ??# #????# #??????????#= #??????????????????? | | ??# ###### ############ll//#####??????????????? | | ??# @l #???????? | | ??# /l #???????? | | ??# Y #???????? | | ??########## ######################### #????????? | | ???????????# #??????????????????????????????????? | | ???????????# #??????????????????????????????????? | | ???????????# #??????????????????????????????????? | | ???????????# #?????????###??????????????????????? | | ???????????# #??????#### ##?????????????????????? | | ???????????# #??##### ###???????????????????? | | ??????????## ####### # ##??????????????????? | | ??????????# # # ## # #??????????????????? | | ??????##### # # ## #% #??###########?????? | | ??????#"T"# # ## ####[[ ##### ## #!!!#?????? | | ??????#" = + !#?????? | | ??????###### # # # # =#####% ##!!!#?????? | | ?????????### ## # [ # # # [ #???#[ %######?????? | | ???????????# # ## ## ### ##???## ##??????????? | | ?????#####?# ## ### #####?# #?????# #???????????? | | ?????#"""#?# ####?# #?????# #?????# #???????????? | | ?????#" ### #????# #?????# #?????# #???????????? | | ?????#" #???? #?????# #?????# #???????????? | | ?????#" #####????# #?????# #????## ##??????????? | | ?????#" #???????? ????#! !#####/ !#??????????? | | ?????#"""#???????? ????#! ! / !#??????????? | +----------------------------------------------------+ Best States ------------- Heat Dissipation 31 Energy Generation 14 Energy Capacity 265 Matter Stores 300 Matter Capacity 300 Sight Range 16 Terrain Scan Density 10 Armor Coverage 150 Evasion (%) 55 Core Analysis 9 Recoil Reduction 1 Item Schematics ----------------- None Robot Schematics ------------------ None Fabricated ------------ Nothing Alien Tech Used ----------------- None Achievements -------------- None Challenges ------------ None Game ------ Seed MultinovaDefenseShotgun Manual? 0 Play Time 00:29:05 Cumulative 21.9 hours Start 2024.07.16 @ 15:39:24 End 2024.07.16 @ 16:36:07 Sessions 1 Manual Loads 0 Difficulty Rogue Special Mode None Game No. 44 Rogue 44 Adventurer 0 Explorer 0 Win Type - Total 0 Types 0/0/0/0/0/0/0/0/0 Lore% 24 Gallery% 30 Achievement% 25 Wizard Run 0 Options --------- Layout 1 ASCII 0 Keyboard 0 Movement Arrows Keybinds 0 Fullscreen 1 Font 32/SmallcapsGlow Map View 50x35 Zoom Use 0% Tactical HUD 1 Map Filters NONE Filters NONE Steam 1 RUN: 2a9abdf9-6716-4a4e-968c-3c7aac5beef3